bitfinex-derivatives/quotes_SOLF0:USTF0_20250106
["timestamp","ask_amount","ask_price","bid_price","bid_amount"]
[1736138986630,7.22531188,215.49,215.46,4.9213]
[1736138987622,2.3207,215.52,215.46,4.9213]
[1736138988026,7.22531188,215.49,215.46,4.9213]
[1736138990333,7.22531188,215.49,215.46,2.6]
[1736138990534,7.22531188,215.49,215.47,2.3213]
[1736138991832,136.04852118,215.59,215.47,7.22531188]
[1736138992129,136.04852118,215.59,215.51,7.22531188]
[1736138992130,7.22531188,215.58,215.51,7.22531188]
[1736138992326,7.22531188,215.58,215.54,2.3204]
[1736138994032,7.22531188,215.56,215.55,2.3204]
[1736138996934,2.3199,215.6,215.55,2.3204]
[1736138997136,7.22531188,215.56,215.55,2.3204]
[1736139001339,7.22531188,215.56,215.52,2.6]
[1736139001540,7.22531188,215.54,215.52,2.6]
[1736139001742,2.3199,215.6,215.52,2.6]
[1736139002045,1.492,215.61,215.52,2.6]
[1736139002241,7.22531188,215.6,215.52,9.82531188]
[1736139003141,7.22531188,215.6,215.54,7.22531188]
[1736139004143,7.22531188,215.62,215.54,7.22531188]
[1736139004547,7.22531188,215.62,215.59,2.32]
[1736139006045,7.22531188,215.62,215.6,2.3198]
[1736139006938,7.22531188,215.62,215.6,2.3199]
[1736139007344,7.22531188,215.62,215.58,2.6]
[1736139007542,3.7638,215.68,215.58,2.6]
[1736139008145,3.7638,215.68,215.59,2.3199]
[1736139008146,7.22531188,215.63,215.59,2.3199]
[1736139008352,7.22531188,215.63,215.58,2.6]
[1736139009543,7.22531188,215.63,215.62,2.3197]
[1736139010150,2.3189,215.69,215.64,2.3194]
[1736139010451,7.22531188,215.69,215.61,7.22531188]
[1736139010656,7.22531188,215.69,215.62,2.6]
[1736139010848,3.7659,215.73,215.67,2.3191]
[1736139011154,3.7659,215.73,215.67,4.9191]
[1736139011648,1.4473,215.73,215.67,2.6]
[1736139011856,131.1416093,215.75,215.69,2.3188]
[1736139012049,7.22531188,215.71,215.69,2.3188]
[1736139012345,7.22531188,215.71,215.67,2.6]
[1736139013445,7.22531188,215.71,215.69,2.3188]
[1736139013852,7.22531188,215.71,215.67,2.6]
[1736139014558,7.22531188,215.71,215.68,2.319]
[1736139014761,7.22531188,215.71,215.67,2.6]
[1736139015463,7.22531188,215.71,215.69,2.3188]
[1736139015660,7.22531188,215.71,215.67,2.6]
[1736139016265,7.22531188,215.71,215.69,2.3188]
[1736139016864,7.22531188,215.71,215.67,2.6]
[1736139017066,7.22531188,215.69,215.67,2.6]
[1736139019162,7.22531188,215.71,215.67,2.6]
[1736139019363,7.22531188,215.71,215.69,2.3189]
[1736139019570,7.22531188,215.73,215.69,2.3189]
[1736139019764,1.4993,215.78,215.69,2.3189]
[1736139020074,7.22531188,215.73,215.69,2.3189]
[1736139021563,1.4993,215.78,215.71,2.3187]
[1736139021761,7.22531188,215.75,215.67,9.82531188]
[1736139022460,3.8173,215.78,215.72,2.3186]
[1736139022665,7.22531188,215.76,215.73,2.6]
[1736139023467,7.22531188,215.76,215.73,4.9185]
[1736139024169,7.22531188,215.74,215.67,7.22531188]
[1736139024474,7.22531188,215.74,215.68,2.6]
[1736139024772,7.22531188,215.74,215.7,2.3187]
[1736139024969,7.22531188,215.72,215.65,7.22531188]
[1736139025169,7.22531188,215.7,215.66,2.6]
[1736139026371,7.22531188,215.72,215.66,2.6]
[1736139027076,7.22531188,215.72,215.68,2.3189]
[1736139028373,7.22531188,215.72,215.69,2.3189]
[1736139030473,7.22531188,215.72,215.7,2.6]
[1736139033380,7.22531188,215.73,215.7,2.6]
[1736139033977,7.22531188,215.73,215.7,4.9188]
[1736139036281,7.22531188,215.74,215.7,4.9188]
[1736139036481,7.22531188,215.74,215.71,2.3187]
[1736139043088,7.22531188,215.74,215.7,4.9188]
[1736139043493,7.22531188,215.72,215.7,2.6]
[1736139046888,9.54391188,215.72,215.7,2.6]
[1736139047089,7.22531188,215.72,215.68,2.6]
[1736139047287,131.2199853,215.78,215.68,2.6]
[1736139047288,7.22531188,215.69,215.68,2.6]
[1736139049391,7.22531188,215.71,215.68,2.6]
[1736139054301,2.3185,215.73,215.68,4.919]
[1736139054599,7.22531188,215.7,215.68,4.919]
[1736139055795,7.22531188,215.7,215.68,2.6]
[1736139056003,7.22531188,215.7,215.67,2.3191]
[1736139056197,7.22531188,215.7,215.67,4.9191]
[1736139058394,7.22531188,215.7,215.67,2.3191]
[1736139058601,7.22531188,215.7,215.68,2.6]
[1736139060905,7.22531188,215.7,215.62,7.22531188]
[1736139061104,7.22531188,215.68,215.63,2.58]
[1736139061304,7.22531188,215.68,215.64,4.8993]
[1736139061499,7.22531188,215.68,215.6,1.4457]
[1736139061805,7.22531188,215.66,215.61,2.58]
[1736139062506,7.22531188,215.66,215.63,2.3194]
[1736139064809,7.22531188,215.66,215.61,2.58]
[1736139065007,7.22531188,215.66,215.64,2.3194]
[1736139067511,7.22531188,215.66,215.65,2.3193]
[1736139068006,7.22531188,215.68,215.65,2.3193]
[1736139072500,128.2974853,215.75,215.66,2.6]
[1736139072710,7.22531188,215.73,215.67,7.22531188]
[1736139072904,128.2974853,215.75,215.66,2.6]
[1736139072905,135.52279718,215.75,215.66,2.6]
[1736139073107,7.22531188,215.75,215.66,9.82531188]
[1736139073512,131.2199853,215.78,215.66,9.82531188]
[1736139073710,7.22531188,215.75,215.66,9.82531188]
[1736139074109,7.22531188,215.75,215.7,2.3187]
[1736139075810,7.22531188,215.75,215.66,9.82531188]
[1736139076013,7.22531188,215.75,215.71,2.3187]
[1736139076410,7.22531188,215.73,215.71,2.3187]
[1736139076615,7.22531188,215.73,215.7,2.3188]
[1736139080017,7.22531188,215.73,215.66,9.82531188]
[1736139080217,7.22531188,215.73,215.71,2.3187]
[1736139084518,7.22531188,215.73,215.7,2.58]
[1736139084818,7.22531188,215.71,215.7,2.58]
[1736139085815,7.22531188,215.73,215.7,4.8988]
[1736139087019,7.22531188,215.73,215.71,2.3187]
[1736139092525,2.3182,215.76,215.71,2.3187]
[1736139092724,7.22531188,215.74,215.71,2.3187]
[1736139092926,2.318,215.77,215.73,2.3185]
[1736139093227,2.318,215.77,215.7,2.58]
[1736139093228,7.22531188,215.76,215.7,2.58]
[1736139094120,7.22531188,215.76,215.7,9.80531188]
[1736139094418,7.22531188,215.74,215.7,2.58]
[1736139095223,7.22531188,215.74,215.7,4.8987]
[1736139095633,8.60216467,215.81,215.72,7.22531188]
[1736139095927,7.22531188,215.79,215.72,7.22531188]
[1736139097328,7.22531188,215.77,215.72,7.22531188]
[1736139097829,7.22531188,215.77,215.7,9.80531188]
[1736139098330,7.22531188,215.77,215.72,2.3186]
[1736139098630,7.22531188,215.77,215.72,9.54391188]
[1736139100633,7.22531188,215.77,215.72,2.3186]
[1736139100837,7.22531188,215.77,215.73,2.58]
[1736139103829,7.22531188,215.77,215.73,4.8985]
[1736139104833,2.3176,215.82,215.75,2.3182]
[1736139105033,7.22531188,215.8,215.75,2.3182]
[1736139105229,7.22531188,215.8,215.73,2.58]
[1736139106534,7.22531188,215.8,215.76,2.3181]
[1736139106736,5.53046396,215.83,215.74,7.22531188]
[1736139106939,2.3173,215.84,215.76,7.22531188]
[1736139107233,7.22531188,215.83,215.78,2.3179]
[1736139107433,2.3173,215.84,215.79,2.58]
[1736139107635,7.22531188,215.83,215.79,2.58]
[1736139108337,7.22531188,215.85,215.82,2.3175]
[1736139108935,7.22531188,215.85,215.79,2.58]
[1736139109132,7.22531188,215.85,215.83,2.3174]
[1736139109339,7.22531188,215.85,215.84,2.58]
[1736139110032,7.22531188,215.87,215.84,2.58]
[1736139112040,7.22531188,215.85,215.84,2.58]
[1736139113938,2.3169,215.88,215.84,2.58]
[1736139114239,7.22531188,215.85,215.84,2.58]
[1736139116540,7.22531188,215.85,215.75,1.4071]
[1736139116838,7.22531188,215.83,215.76,9.80531188]
[1736139117030,1.4166,215.9,215.76,9.80531188]
[1736139117234,7.22531188,215.82,215.76,9.80531188]
[1736139118535,7.22531188,215.82,215.78,2.3178]
[1736139119839,7.22531188,215.82,215.76,12.12341188]
[1736139120043,7.22531188,215.8,215.77,2.58]
[1736139121542,9.54301188,215.8,215.77,2.58]
[1736139122942,9.54301188,215.8,215.75,2.3182]
[1736139123144,9.54301188,215.8,215.76,2.58]
[1736139124545,7.22531188,215.8,215.76,4.8981]
[1736139126044,152.07611538,215.88,215.76,2.58]
[1736139126243,7.22531188,215.82,215.76,2.58]
[1736139126447,7.22531188,215.82,215.79,2.3178]
[1736139127648,7.22531188,215.82,215.78,2.3179]
[1736139128850,9.54291188,215.82,215.78,2.3179]
[1736139129643,7.22531188,215.8,215.73,7.22531188]
[1736139129848,7.22531188,215.78,215.74,2.3183]
[1736139130047,7.22531188,215.78,215.75,2.58]
[1736139130251,7.22531188,215.78,215.76,2.3181]
[1736139130452,7.22531188,215.78,215.75,2.58]
[1736139130846,7.22531188,215.76,215.73,2.58]
[1736139131650,9.54351188,215.76,215.73,2.58]
[1736139131850,7.22531188,215.74,215.71,2.3187]
[1736139132055,7.22531188,215.74,215.71,2.58]
[1736139132351,7.22531188,215.74,215.69,2.3188]
[1736139132552,7.22531188,215.74,215.69,4.8988]
[1736139133246,7.22531188,215.74,215.67,1.4853]
[1736139133453,2.3185,215.73,215.69,2.58]
[1736139135247,7.22531188,215.74,215.69,2.58]
[1736139136056,2.3185,215.73,215.69,2.58]
[1736139136855,7.22531188,215.72,215.69,2.58]
[1736139137359,9.54391188,215.72,215.69,2.58]
[1736139137655,7.22531188,215.7,215.66,2.3191]
[1736139137860,7.22531188,215.7,215.67,2.58]
[1736139138460,7.22531188,215.7,215.66,2.3191]
[1736139140054,7.22531188,215.68,215.51,23.0]
[1736139140260,7.22531188,215.66,215.61,2.3197]
[1736139142957,2.3192,215.67,215.61,2.3197]
[1736139143158,7.22531188,215.66,215.61,2.3197]
[1736139144658,9.54451188,215.66,215.6,2.58]
[1736139145058,9.54451188,215.66,215.59,9.80531188]
[1736139145454,9.54451188,215.66,215.61,2.3197]
[1736139146763,7.22531188,215.66,215.61,2.3197]
[1736139150564,9.54411188,215.7,215.64,2.3193]
[1736139150763,9.54411188,215.7,215.63,7.22531188]
[1736139150961,9.54411188,215.7,215.64,2.58]
[1736139151768,7.22531188,215.7,215.64,2.58]
[1736139151961,7.22531188,215.7,215.66,2.3192]
[1736139152666,9.54411188,215.7,215.66,2.3192]
[1736139152866,7.22531188,215.7,215.66,2.3192]
[1736139153667,7.22531188,215.71,215.68,2.319]
[1736139154569,1.424,215.77,215.67,7.22531188]
[1736139154872,7.22531188,215.75,215.69,7.22531188]
[1736139155066,7.22531188,215.75,215.7,2.58]
[1736139155268,1.3935,215.8,215.7,2.58]
[1736139155570,7.22531188,215.75,215.71,2.3187]
[1736139157169,7.22531188,215.75,215.72,2.3186]
[1736139160462,7.22531188,215.75,215.71,2.3187]
[1736139161167,9.54361188,215.75,215.71,2.3187]
[1736139162276,7.22531188,215.75,215.71,2.3187]
[1736139162670,7.22531188,215.75,215.72,2.3186]
[1736139169577,2.3182,215.76,215.72,2.3186]
[1736139171676,7.22531188,215.75,215.72,2.3186]
[1736139173379,7.22531188,215.75,215.7,2.58]
[1736139173582,7.22531188,215.75,215.71,2.3187]
[1736139174183,2.3184,215.74,215.7,2.58]
[1736139175377,2.3184,215.74,215.7,4.8988]
[1736139176182,7.22531188,215.75,215.7,4.8988]
[1736139176382,9.54361188,215.75,215.7,4.8988]
[1736139179585,7.22531188,215.77,215.7,2.58]
[1736139179788,9.54341188,215.77,215.72,2.3186]
[1736139180287,150.61663588,215.84,215.71,7.22531188]
[1736139180489,7.22531188,215.79,215.74,2.3183]
[1736139180685,7.22531188,215.79,215.75,2.58]
[1736139181488,9.54311188,215.79,215.75,2.58]
[1736139181687,7.22531188,215.77,215.75,2.58]
[1736139184301,9.54331188,215.77,215.75,2.58]
[1736139184909,9.54331188,215.77,215.73,2.58]
[1736139185798,9.54361188,215.75,215.71,2.3187]
[1736139186003,7.22531188,215.73,215.71,2.58]
[1736139186689,7.22531188,215.75,215.71,2.58]
[1736139186887,128.2974853,215.8,215.71,2.58]
[1736139187089,7.22531188,215.76,215.73,2.3185]
[1736139187289,7.22531188,215.77,215.71,2.58]
[1736139187693,7.22531188,215.77,215.74,2.3184]
[1736139188690,7.22531188,215.77,215.71,2.58]
[1736139188691,7.22531188,215.77,215.72,7.22531188]
[1736139188891,7.22531188,215.77,215.75,2.3182]
[1736139192393,7.22531188,215.79,215.75,2.3182]
[1736139193195,128.2974853,215.84,215.77,2.318]
[1736139193196,7.22531188,215.81,215.77,2.318]
[1736139193995,7.22531188,215.81,215.76,9.80531188]
[1736139194195,128.2974853,215.85,215.79,2.3178]
[1736139194196,7.22531188,215.83,215.79,2.3178]
[1736139196597,7.22531188,215.81,215.79,2.3178]
[1736139199701,7.22531188,215.81,215.78,2.3179]
[1736139202406,7.22531188,215.81,215.77,2.318]
[1736139202606,7.22531188,215.79,215.72,7.22531188]
[1736139202804,7.22531188,215.79,215.73,2.58]
[1736139203497,7.22531188,215.77,215.69,2.9138]
[1736139203701,7.22531188,215.77,215.7,9.80531188]
[1736139204102,7.22531188,215.77,215.73,2.3185]
[1736139205007,9.54311188,215.79,215.74,2.3184]
[1736139208011,7.22531188,215.79,215.75,2.3182]
[1736139208712,7.22531188,215.79,215.75,4.8982]
[1736139209210,7.22531188,215.82,215.76,7.22531188]
[1736139210511,7.22531188,215.82,215.78,2.3179]
[1736139213412,9.54281188,215.82,215.78,2.3179]
[1736139214214,9.54281188,215.82,215.77,2.318]
[1736139216319,2.3175,215.82,215.77,2.318]
[1736139216516,7.22531188,215.81,215.78,2.3179]
[1736139217616,7.22531188,215.81,215.77,4.898]
[1736139219216,9.54291188,215.81,215.76,2.3181]
[1736139219415,7.22531188,215.79,215.75,2.58]
[1736139220517,9.54321188,215.79,215.75,2.58]
[1736139223017,2.3179,215.79,215.75,2.58]
[1736139223420,9.54321188,215.79,215.75,2.58]
[1736139224224,9.54321188,215.79,215.74,4.8984]
[1736139224423,9.54321188,215.79,215.74,2.3184]
[1736139225920,2.318,215.78,215.73,2.3184]
[1736139226120,7.22531188,215.77,215.73,4.8984]
[1736139226623,7.22531188,215.77,215.73,2.3184]
[1736139227014,7.22531188,215.77,215.69,2.9138]
[1736139227015,9.54361188,215.75,215.7,2.3188]
[1736139227223,9.54361188,215.75,215.71,2.58]
[1736139228327,7.22531188,215.79,215.74,2.3184]
[1736139229322,9.54321188,215.79,215.74,2.3184]
[1736139231127,9.54321188,215.79,215.75,2.3182]
[1736139232927,9.54301188,215.81,215.77,2.318]
[1736139235231,7.22531188,215.79,215.76,2.58]
[1736139236228,7.22531188,215.79,215.75,2.3182]
[1736139236428,7.22531188,215.79,215.75,4.8982]
[1736139238933,9.54311188,215.79,215.75,4.8982]
[1736139241740,7.22531188,215.79,215.75,4.8982]
[1736139242640,7.22531188,215.79,215.76,2.3181]
[1736139247339,7.22531188,215.79,215.75,4.8982]
[1736139251846,9.54311188,215.79,215.74,4.8983]
[1736139252050,7.22531188,215.79,215.74,2.58]
[1736139253245,7.22531188,215.79,215.74,4.8983]
[1736139253742,9.54321188,215.79,215.74,4.8983]
[1736139255349,9.54321188,215.79,215.74,2.3183]
[1736139256848,2.3179,215.79,215.74,2.3183]
[1736139257150,7.22531188,215.81,215.77,2.318]
[1736139258950,7.22531188,215.79,215.75,2.3182]
[1736139259350,7.22531188,215.79,215.73,25.58]
[1736139259551,7.22531188,215.79,215.76,2.3181]
[1736139260152,9.54321188,215.79,215.74,2.3183]
[1736139260750,7.22531188,215.77,215.74,2.3183]
[1736139260950,7.22531188,215.77,215.73,27.8985]
[1736139261656,7.22531188,215.75,215.73,23.0]
[1736139263667,9.54351188,215.76,215.73,23.0]
[1736139264251,7.22531188,215.76,215.73,25.3184]
[1736139265757,7.22531188,215.76,215.74,2.3184]
[1736139267254,7.22531188,215.79,215.76,2.3181]
[1736139267453,7.22531188,215.79,215.73,23.0]
[1736139267859,128.2974853,215.81,215.78,2.3179]
[1736139268058,7.22531188,215.8,215.78,2.3179]
[1736139270260,7.22531188,215.8,215.74,2.58]
[1736139271055,9.54301188,215.8,215.74,4.8983]
[1736139271357,7.22531188,215.78,215.74,4.8983]
[1736139271955,3.47757299,215.82,215.74,4.8983]
[1736139272156,7.22531188,215.78,215.74,4.8983]
[1736139272755,7.22531188,215.78,215.73,25.3184]
[1736139272960,7.22531188,215.76,215.73,23.0]
[1736139275060,7.22531188,215.76,215.73,25.3184]
[1736139278668,7.22531188,215.78,215.75,2.3183]
[1736139282472,7.22531188,215.78,215.76,2.3181]
[1736139286075,7.22531188,215.78,215.73,23.0]
[1736139286380,3.47788101,215.81,215.75,2.3183]
[1736139286381,7.22531188,215.76,215.75,2.3183]
[1736139286578,14.37589252,215.81,215.73,23.0]
[1736139286779,7.22531188,215.77,215.76,2.3181]
[1736139287178,5.79562436,215.81,215.76,2.3181]
[1736139287375,7.22531188,215.78,215.76,2.3181]
[1736139288572,3.47785568,215.82,215.73,23.0]
[1736139288773,128.2974853,215.83,215.73,30.22531188]
[1736139289076,7.22531188,215.81,215.73,30.22531188]
[1736139289678,7.22531188,215.81,215.75,2.3182]
[1736139289978,7.22531188,215.81,215.76,2.58]
[1736139291484,2.3174,215.84,215.79,2.3178]
[1736139291780,7.22531188,215.8,215.79,2.3178]
[1736139301977,3.47742035,215.86,215.76,2.58]
[1736139302185,150.61509875,215.87,215.81,7.22531188]
[1736139302383,150.61509875,215.87,215.82,2.58]
[1736139302584,150.61509875,215.87,215.83,7.22531188]
[1736139302987,7.22531188,215.87,215.85,25.3172]
[1736139304084,128.2974853,215.9,215.88,2.3168]
[1736139304288,128.2974853,215.91,215.87,9.80531188]
[1736139304883,128.2974853,215.91,215.9,2.3166]
[1736139305290,123.6908853,215.91,215.9,2.3166]
[1736139305688,123.6908853,215.98,215.96,23.0]
[1736139306287,7.22531188,215.97,215.96,23.0]
[1736139306585,1.3839,216.0,215.96,23.0]
[1736139306982,7.22531188,215.98,215.96,23.0]
[1736139307187,2.3157,215.99,215.96,23.0]
[1736139307383,7.22531188,215.98,215.96,23.0]
[1736139307584,4.90797203,216.04,215.93,9.80531188]
[1736139307789,7.22531188,216.0,215.93,9.80531188]
[1736139307990,9.54091188,216.0,215.93,4.8962]
[1736139308188,7.22531188,215.98,215.93,4.8962]
[1736139309191,7.22531188,215.98,215.93,2.58]
[1736139309490,7.22531188,215.96,215.93,2.58]
[1736139309889,7.22531188,215.97,215.96,23.0]
[1736139310288,9.54121188,215.97,215.96,23.0]
[1736139314588,2.3159,215.97,215.96,23.0]
[1736139314793,9.54121188,215.97,215.96,23.0]
[1736139316588,2.3159,215.97,215.96,23.0]
[1736139316990,9.54121188,215.97,215.96,20.6984]
[1736139318995,9.54121188,215.97,215.96,18.6984]
[1736139330608,2.3166,215.91,215.87,1.4486]
[1736139330807,9.54191188,215.91,215.88,2.58]
[1736139331913,2.3167,215.9,215.88,4.58]
[1736139332613,2.3165,215.92,215.88,4.58]
[1736139333007,7.22531188,215.91,215.88,4.58]
[1736139333206,7.22531188,215.91,215.88,2.0]
[1736139333405,7.22531188,215.93,215.88,2.0]
[1736139334308,7.22531188,215.93,215.89,2.3167]
[1736139335709,7.22531188,215.93,215.9,2.3166]
[1736139335907,7.22531188,215.93,215.88,3.4555]
[1736139336103,7.22531188,215.9,215.88,2.0]
[1736139337414,2.3168,215.89,215.88,2.0]
[1736139338412,9.54211188,215.89,215.88,2.0]
[1736139344721,2.3171,215.86,215.82,2.58]
[1736139345023,7.22531188,215.85,215.81,2.3175]
[1736139348327,2.3171,215.86,215.82,2.3175]
[1736139348523,7.22531188,215.85,215.82,2.3175]
[1736139348927,2.3171,215.86,215.82,2.3175]
[1736139350931,7.22531188,215.87,215.82,2.3175]
[1736139352027,7.22531188,215.87,215.82,4.8975]
[1736139352226,7.22531188,215.85,215.82,4.8975]
[1736139355933,7.22531188,215.85,215.82,2.3175]
[1736139360730,2.3171,215.86,215.82,2.3175]
[1736139360930,2.317,215.87,215.82,2.3175]
[1736139361126,7.22531188,215.86,215.82,2.3175]
[1736139364735,7.22531188,215.84,215.81,2.58]
[1736139366138,7.22531188,215.84,215.8,3.8239]
[1736139368233,7.22531188,215.82,215.8,2.3176]
[1736139369337,7.22531188,215.84,215.82,2.3174]
[1736139373340,7.22531188,215.84,215.81,2.3176]
[1736139374546,7.22531188,215.82,215.81,2.3176]
[1736139378849,7.22531188,215.84,215.79,2.58]
[1736139379051,7.22531188,215.84,215.82,2.3174]
[1736139379446,7.22531188,215.84,215.79,2.58]
[1736139379646,7.22531188,215.84,215.83,2.3174]
[1736139384651,2.317,215.87,215.83,2.3174]
[1736139384945,7.22531188,215.86,215.83,2.3174]
[1736139386854,7.22531188,215.84,215.7,1.445]
[1736139387060,7.22531188,215.84,215.76,7.22531188]
[1736139387359,7.22531188,215.84,215.77,2.58]
[1736139387749,7.22531188,215.84,215.8,2.3177]
[1736139388158,7.22531188,215.84,215.78,7.22531188]
[1736139388457,7.22531188,215.84,215.82,2.3174]
[1736139388660,2.3171,215.87,215.78,7.22531188]
[1736139388857,7.22531188,215.86,215.78,7.22531188]
[1736139390257,3.47663381,215.89,215.8,7.22531188]
[1736139390453,127.39602761,215.9,215.82,7.22531188]
[1736139390653,134.62133949,215.9,215.83,2.58]
[1736139391351,7.22531188,215.9,215.83,2.58]
[1736139393157,7.22531188,215.88,215.85,2.3171]
[1736139395266,2.3168,215.89,215.85,2.3171]
[1736139395460,9.54211188,215.89,215.85,2.3171]
[1736139395661,2.3168,215.89,215.85,2.3171]
[1736139395866,9.54211188,215.89,215.84,4.8973]
[1736139397565,7.22531188,215.9,215.86,2.3171]
[1736139398262,2.3164,215.93,215.86,2.3171]
[1736139398467,7.22531188,215.9,215.86,2.3171]
[1736139398668,3.47612939,215.93,215.86,2.3171]
[1736139398867,139.440631,215.94,215.86,2.3171]
[1736139399068,7.22531188,215.9,215.85,2.58]
[1736139399268,9.54201188,215.9,215.85,4.8972]
[1736139402169,2.3167,215.89,215.85,2.58]
[1736139403071,7.22531188,215.88,215.82,7.22531188]
[1736139403265,2.3173,215.85,215.78,4.2101]
[1736139403469,7.22531188,215.84,215.79,2.58]
[1736139404369,9.54261188,215.84,215.8,2.3177]
[1736139405165,7.22531188,215.84,215.8,2.3177]
[1736139410475,2.3172,215.85,215.8,2.3177]
[1736139410769,7.22531188,215.84,215.8,2.3177]
[1736139412572,9.54261188,215.84,215.8,2.58]
[1736139412870,12.04277224,215.89,215.8,2.58]
[1736139413069,7.22531188,215.82,215.8,2.58]
[1736139414166,9.54281188,215.82,215.8,2.58]
[1736139414471,9.54281188,215.82,215.78,4.8979]
[1736139414673,7.22531188,215.82,215.78,4.8979]
[1736139415872,9.54281188,215.82,215.78,4.8979]
[1736139416573,7.22531188,215.82,215.78,4.8979]
[1736139418878,9.54271188,215.83,215.79,2.3178]
[1736139420174,7.22531188,215.81,215.79,2.3178]
[1736139420870,2.3177,215.8,215.78,2.58]
[1736139421068,7.22531188,215.79,215.78,2.58]
[1736139421472,7.22531188,215.79,215.76,2.58]
[1736139422171,7.22531188,215.79,215.76,4.8981]
[1736139426885,2.3176,215.81,215.76,4.8981]
[1736139427083,7.22531188,215.8,215.76,4.8981]
[1736139431795,7.44380946,215.87,215.76,2.58]
[1736139432098,7.22531188,215.82,215.76,2.58]
[1736139433500,7.22531188,215.82,215.78,2.3178]
[1736139434297,7.22531188,215.84,215.8,2.3176]
[1736139434903,7.22531188,215.84,215.81,2.3175]
[1736139436397,2.3171,215.85,215.76,9.80531188]
[1736139436599,7.22531188,215.83,215.8,2.3176]
[1736139436799,2.3171,215.85,215.8,2.3176]
[1736139436999,7.22531188,215.83,215.8,2.3176]
[1736139438700,1.3864,215.87,215.77,7.22531188]
[1736139438902,7.22531188,215.85,215.81,2.3175]
[1736139439302,7.22531188,215.85,215.81,4.8975]
[1736139439600,1.4294,215.88,215.83,2.3172]
[1736139439799,8.65471188,215.88,215.81,9.80531188]
[1736139440002,7.22531188,215.88,215.81,9.80531188]
[1736139440390,7.22531188,215.88,215.83,7.22531188]
[1736139440597,7.22531188,215.9,215.83,7.22531188]
[1736139441900,5.10068063,215.91,215.83,7.22531188]
[1736139442298,127.39602761,215.95,215.85,7.22531188]
[1736139442600,7.22531188,215.92,215.86,2.58]
[1736139443503,7.22531188,215.92,215.88,2.3167]
[1736139447401,7.22531188,215.9,215.87,2.3168]
[1736139448599,7.22531188,215.88,215.86,2.58]
[1736139450501,7.22531188,215.88,215.84,2.58]
[1736139450702,7.22531188,215.86,215.84,4.8971]
[1736139452100,7.22531188,215.86,215.83,2.58]
[1736139453600,7.22531188,215.86,215.82,2.3173]
[1736139453805,7.22531188,215.84,215.82,4.8973]
[1736139454001,7.22531188,215.84,215.82,2.58]
[1736139455101,7.22531188,215.84,215.8,4.8975]
[1736139456707,7.22531188,215.82,215.8,2.58]
[1736139457010,7.22531188,215.82,215.79,2.58]
[1736139457307,7.22531188,215.82,215.78,2.3177]
[1736139457501,7.22531188,215.82,215.79,2.58]
[1736139460107,9.54271188,215.82,215.76,7.22531188]
[1736139460303,7.22531188,215.82,215.77,2.58]
[1736139460502,7.22531188,215.8,215.74,7.22531188]
[1736139460701,7.22531188,215.8,215.75,2.58]
[1736139461301,2.3177,215.79,215.75,2.58]
[1736139462606,2.3177,215.79,215.75,4.8981]
[1736139463011,2.3177,215.79,215.75,2.58]
[1736139463199,7.22531188,215.78,215.74,2.3182]
[1736139463400,7.22531188,215.78,215.75,2.58]
[1736139465614,2.3175,215.8,215.75,2.58]
[1736139465911,7.22531188,215.8,215.75,2.58]
[1736139466114,7.22531188,215.8,215.76,2.318]
[1736139468005,9.54291188,215.8,215.76,2.318]
[1736139468712,9.54291188,215.8,215.76,4.898]
[1736139469212,9.54291188,215.8,215.76,2.58]
[1736139470215,2.3177,215.79,215.76,2.58]
[1736139472512,2.3179,215.77,215.76,2.58]
[1736139473014,9.54311188,215.78,215.73,2.3182]
[1736139473313,9.54311188,215.78,215.74,2.58]
[1736139473915,7.22531188,215.78,215.74,2.58]
[1736139474112,2.3179,215.77,215.74,2.58]
[1736139475513,9.54321188,215.77,215.73,4.8982]
[1736139478613,2.3177,215.79,215.75,2.3181]
[1736139481118,9.54311188,215.78,215.74,2.3182]
[1736139482020,9.54311188,215.78,215.74,4.8982]
[1736139482220,2.318,215.77,215.74,2.58]